bitfinex/quotes_SOLUSD_20251119
["timestamp","ask_amount","ask_price","bid_price","bid_amount"]
[1763527771606,3.32036108,139.08,139.04,0.66]
[1763527771796,3.32036108,139.08,139.05,4.3]
[1763527772187,3.32036108,139.1,139.06,0.66]
[1763527772408,0.66,139.13,139.06,28.98036108]
[1763527772617,0.66,139.15,139.07,3.32036108]
[1763527772815,3.32036108,139.13,139.08,4.3]
[1763527772995,3.32036108,139.13,139.08,4.96]
[1763527773193,3.32036108,139.11,139.08,4.3]
[1763527773508,3.32036108,139.11,139.08,4.96]
[1763527773887,21.44132108,139.12,139.09,0.66]
[1763527774110,3.32036108,139.12,139.09,25.66]
[1763527774314,0.66,139.13,139.09,0.66]
[1763527774315,3.32036108,139.13,139.09,0.66]
[1763527774611,3.32036108,139.15,139.1,18.78096]
[1763527774799,3.32036108,139.14,139.11,4.3]
[1763527775002,3.32036108,139.14,139.11,4.96]
[1763527775200,3.32036108,139.14,139.12,0.66]
[1763527775508,18.78096,139.16,139.12,0.66]
[1763527775716,3.32036108,139.14,139.12,0.66]
[1763527776711,3.32036108,139.15,139.12,0.66]
[1763527776920,3.32036108,139.16,139.13,4.3]
[1763527777410,3.32036108,139.16,139.13,4.96]
[1763527777994,3.32036108,139.16,139.13,26.50091511]
[1763527780841,2.12214269,139.16,139.13,25.84091511]
[1763527780997,2.12214269,139.14,139.13,25.0]
[1763527781419,20.90310269,139.14,139.12,4.3]
[1763527781623,20.90310269,139.13,139.12,4.3]
[1763527781794,20.90310269,139.13,139.07,25.66]
[1763527782002,20.90310269,139.13,139.08,4.3]
[1763527782003,2.12214269,139.09,139.08,4.3]
[1763527782216,2.12214269,139.1,139.08,4.96]
[1763527783301,2.12214269,139.1,139.08,26.15650042]
[1763527783503,18.12096,139.16,139.08,4.3]
[1763527783813,2.12214269,139.12,139.09,5.02]
[1763527784019,2.12214269,139.13,139.09,5.02]
[1763527784337,2.12214269,139.12,139.09,4.3]
[1763527784518,2.12214269,139.12,139.09,5.02]
[1763527785331,2.12214269,139.1,139.08,21.73505844]
[1763527785531,2.12214269,139.1,139.09,4.3]
[1763527786333,2.79214269,139.1,139.09,4.3]
[1763527786811,2.12214269,139.1,139.09,4.3]
[1763527787130,0.67,139.11,139.09,4.3]
[1763527787427,2.12214269,139.1,139.09,4.3]
[1763527787810,2.12214269,139.11,139.09,4.3]
[1763527788025,0.67,139.15,139.1,0.72]
[1763527788217,2.12214269,139.12,139.1,25.0]
[1763527788828,2.12214269,139.14,139.11,0.72]
[1763527789033,2.12214269,139.14,139.12,4.3]
[1763527790134,2.12214269,139.14,139.13,4.3]
[1763527790323,2.12214269,139.16,139.13,4.3]
[1763527790525,2.12214269,139.17,139.14,0.72]
[1763527790725,2.12214269,139.18,139.15,4.3]
[1763527791239,2.12214269,139.17,139.15,4.3]
[1763527793034,2.79214269,139.18,139.15,5.02]
[1763527793212,2.12214269,139.18,139.15,5.02]
[1763527793938,2.12214269,139.17,139.15,5.02]
[1763527794839,2.12214269,139.18,139.15,5.02]
[1763527796340,2.12214269,139.18,139.15,4.3]
[1763527796538,2.12214269,139.18,139.11,25.0]
[1763527796539,2.12214269,139.16,139.13,0.72]
[1763527796841,2.12214269,139.15,139.14,4.3]
[1763527797231,0.2,139.19,139.13,25.0]
[1763527797539,0.2,139.19,139.14,4.3]
[1763527797713,2.12214269,139.16,139.15,4.3]
[1763527797917,0.67,139.18,139.14,4.3]
[1763527798124,0.67,139.17,139.14,4.3]
[1763527798533,0.67,139.17,139.11,25.0]
[1763527798745,0.67,139.17,139.12,4.3]
[1763527798930,2.12214269,139.15,139.11,25.72]
[1763527799126,0.67,139.17,139.12,4.3]
[1763527799332,2.12214269,139.15,139.12,4.3]
[1763527799641,2.12214269,139.15,139.12,5.02]
[1763527800228,2.12214269,139.17,139.13,0.72]
[1763527800434,2.12214269,139.18,139.13,0.72]
[1763527801134,2.12214269,139.18,139.13,2.84214269]
[1763527801643,2.12214269,139.18,139.14,0.72]
[1763527801829,0.2,139.19,139.15,4.3]
[1763527802029,0.2,139.19,139.15,6.42214269]
[1763527802237,0.2,139.19,139.16,0.72]
[1763527803450,2.32214269,139.19,139.16,0.72]
[1763527803751,0.87,139.19,139.17,4.3]
[1763527803922,0.87,139.19,139.18,4.3]
[1763527804847,2.99214269,139.19,139.18,4.3]
[1763527805350,0.2,139.19,139.18,5.02]
[1763527805519,0.2,139.19,139.18,4.3]
[1763527805718,2.99214269,139.19,139.18,4.3]
[1763527806551,21.11310269,139.19,139.14,25.0]
[1763527806755,2.12214269,139.15,139.12,25.72]
[1763527807052,2.12214269,139.15,139.13,4.3]
[1763527807350,2.12214269,139.17,139.13,5.02]
[1763527807521,2.12214269,139.18,139.14,0.72]
[1763527807726,0.87,139.19,139.14,25.72]
[1763527807928,2.99214269,139.19,139.14,25.72]
[1763527808143,2.99214269,139.19,139.15,0.72]
[1763527808320,2.32214269,139.19,139.16,4.3]
[1763527808736,2.32214269,139.19,139.17,0.72]
[1763527808947,0.2,139.19,139.17,25.72]
[1763527809133,0.2,139.19,139.17,31.24351143]
[1763527809444,0.2,139.2,139.18,6.24351143]
[1763527809647,0.2,139.2,139.19,9.82351143]
[1763527809851,0.2,139.21,139.19,10.54351143]
[1763527810029,0.2,139.21,139.2,0.72]
[1763527810231,0.2,139.21,139.2,25.72]
[1763527810626,0.2,139.21,139.2,29.3]
[1763527811255,0.2,139.21,139.2,30.02]
[1763527814371,0.2,139.25,139.2,35.54351143]
[1763527814546,0.2,139.25,139.21,0.67]
[1763527815560,5.72351143,139.25,139.21,0.67]
[1763527815944,5.52351143,139.24,139.21,0.67]
[1763527816458,6.19351143,139.24,139.2,29.3]
[1763527816643,5.52351143,139.24,139.21,0.67]
[1763527817033,5.72351143,139.25,139.21,0.67]
[1763527817244,5.52351143,139.24,139.21,0.67]
[1763527817955,5.52351143,139.24,139.21,25.67]
[1763527818153,5.52351143,139.24,139.22,4.28]
[1763527819263,5.52351143,139.24,139.22,4.95]
[1763527819468,5.52351143,139.24,139.22,0.67]
[1763527819643,5.72351143,139.25,139.23,4.28]
[1763527819844,6.39351143,139.25,139.23,29.28]
[1763527820049,0.2,139.28,139.25,9.78882769]
[1763527820274,0.2,139.28,139.27,18.12096]
[1763527820459,0.2,139.28,139.26,0.67]
[1763527820652,0.2,139.28,139.27,4.28]
[1763527820971,0.2,139.28,139.27,26.75306281]
[1763527822063,0.2,139.28,139.27,22.47306281]
[1763527822861,0.2,139.28,139.27,26.75306281]
[1763527824064,0.2,139.28,139.27,4.99]
[1763527824364,0.2,139.28,139.27,26.17700078]
[1763527825865,0.2,139.28,139.27,25.46700078]
[1763527827366,0.2,139.28,139.27,26.17700078]
[1763527827958,0.2,139.28,139.27,25.46700078]
[1763527828342,0.2,139.28,139.27,26.17700078]
[1763527829568,0.2,139.28,139.27,25.46700078]
[1763527832674,0.2,139.28,139.21,25.0]
[1763527832845,0.2,139.28,139.19,2.11775128]
[1763527832846,2.11775128,139.25,139.19,2.11775128]
[1763527833048,2.11775128,139.25,139.21,0.71]
[1763527833574,2.77775128,139.25,139.22,4.28]
[1763527833746,0.66,139.25,139.21,0.71]
[1763527834070,2.77775128,139.25,139.22,4.28]
[1763527834470,2.11775128,139.27,139.23,0.71]
[1763527834767,2.97775128,139.28,139.23,0.71]
[1763527834965,2.97775128,139.28,139.24,4.28]
[1763527835170,0.66,139.27,139.23,0.71]
[1763527835368,0.66,139.27,139.24,4.28]
[1763527835767,0.66,139.27,139.24,4.99]
[1763527836068,2.31775128,139.28,139.24,4.99]
[1763527836277,2.97775128,139.28,139.24,4.99]
[1763527836465,0.66,139.27,139.24,0.71]
[1763527836775,5.71705947,139.28,139.25,4.28]
[1763527837075,0.2,139.28,139.25,4.28]
[1763527837274,0.2,139.28,139.26,4.28]
[1763527837772,0.66,139.27,139.23,25.0]
[1763527837971,0.66,139.27,139.24,4.28]
[1763527838270,5.51705947,139.26,139.25,4.28]
[1763527838476,5.51705947,139.26,139.21,0.71]
[1763527838779,5.51705947,139.22,139.21,4.28]
[1763527839074,6.17705947,139.22,139.15,25.71]
[1763527839376,5.51705947,139.19,139.16,4.28]
[1763527839874,5.51705947,139.19,139.17,4.28]
[1763527840065,5.51705947,139.21,139.18,4.28]
[1763527840250,5.51705947,139.21,139.19,4.28]
[1763527840449,6.17705947,139.21,139.2,4.28]
[1763527840671,0.66,139.2,139.16,21.68957746]
[1763527840868,5.51705947,139.17,139.12,0.71]
[1763527841082,5.51705947,139.15,139.11,21.74337286]
[1763527841273,5.51705947,139.15,139.11,0.81]
[1763527841465,6.17705947,139.16,139.12,4.99]
[1763527841778,6.17705947,139.16,139.13,4.28]
[1763527842378,0.66,139.18,139.14,0.66]
[1763527842564,6.17705947,139.18,139.15,4.28]
[1763527842763,9.89514013,139.18,139.15,4.28]
[1763527843164,9.23514013,139.19,139.15,0.66]
[1763527843366,9.23514013,139.19,139.16,4.28]
[1763527843562,9.91514013,139.18,139.13,9.89514013]
[1763527843879,9.91514013,139.18,139.14,4.28]
[1763527844076,9.23514013,139.18,139.14,4.94]
[1763527844265,9.23514013,139.19,139.15,0.66]
[1763527844779,9.91514013,139.19,139.16,4.28]
[1763527844949,9.91514013,139.18,139.16,4.28]
[1763527846079,0.68,139.18,139.16,4.28]
[1763527847191,0.68,139.18,139.16,29.28]
[1763527847683,0.68,139.18,139.16,25.0]
[1763527847867,9.23514013,139.19,139.17,4.28]
[1763527848066,0.68,139.18,139.17,29.28]
[1763527849289,18.80096,139.21,139.17,29.28]
[1763527849460,9.23514013,139.19,139.17,29.28]
[1763527849986,9.91514013,139.18,139.17,29.28]
[1763527850194,9.91514013,139.18,139.14,103.1]
[1763527850195,9.91514013,139.18,139.14,25.0]
[1763527850361,9.23514013,139.15,139.11,46.40550707]
[1763527850564,9.23514013,139.13,139.12,4.28]
[1763527850790,0.68,139.16,139.12,4.28]
[1763527850965,9.23514013,139.15,139.12,4.28]
[1763527851366,0.68,139.14,139.12,4.28]
[1763527853058,0.68,139.14,139.12,29.28]
[1763527853584,9.91514013,139.14,139.12,29.28]
[1763527853789,9.91514013,139.18,139.13,0.66]
[1763527854486,9.91514013,139.2,139.13,34.89514013]
[1763527854668,0.68,139.19,139.14,9.23514013]
[1763527854985,9.91514013,139.19,139.15,4.28]
[1763527855395,9.91514013,139.19,139.15,4.94]
[1763527855803,18.12096,139.21,139.13,25.0]
[1763527855804,9.91514013,139.18,139.13,25.0]
[1763527856090,9.23514013,139.17,139.14,4.28]
[1763527856391,9.91514013,139.17,139.14,4.28]
[1763527856893,9.91514013,139.17,139.14,4.94]
[1763527856894,0.68,139.17,139.14,4.94]
[1763527857666,9.91514013,139.17,139.15,4.28]
[1763527858285,0.68,139.16,139.13,25.0]
[1763527858484,0.68,139.16,139.14,4.28]
[1763527858683,9.91514013,139.18,139.14,4.28]
[1763527858994,9.91514013,139.18,139.14,29.28]
[1763527859197,9.23514013,139.18,139.14,29.94]
[1763527859700,0.68,139.18,139.14,29.94]
[1763527860377,9.91514013,139.18,139.14,29.28]
[1763527860781,9.91514013,139.18,139.14,29.94]
[1763527861487,9.91514013,139.2,139.15,0.66]
[1763527861703,9.23514013,139.16,139.14,29.28]
[1763527862106,9.91514013,139.16,139.14,29.28]
[1763527862288,9.23514013,139.16,139.14,29.28]
[1763527862470,9.91514013,139.15,139.11,0.1]
[1763527862801,0.68,139.15,139.12,4.28]
[1763527863107,0.68,139.14,139.12,4.28]
[1763527863984,9.23514013,139.13,139.12,4.28]
[1763527864412,9.91514013,139.13,139.12,4.28]
[1763527866789,9.91514013,139.13,139.11,0.1]
[1763527867010,27.90978769,139.18,139.11,0.1]
[1763527867011,9.91514013,139.12,139.11,0.1]
[1763527867517,0.68,139.14,139.11,0.1]
[1763527867699,9.78882769,139.18,139.12,0.66]
[1763527868020,0.68,139.15,139.13,4.28]
[1763527868618,9.91514013,139.15,139.13,4.28]
[1763527868992,0.68,139.14,139.13,4.28]
[1763527869293,0.68,139.15,139.13,4.28]
[1763527869724,9.91514013,139.15,139.13,4.28]
[1763527870220,9.91514013,139.15,139.14,4.28]
[1763527870387,27.35610013,139.15,139.12,25.0]
[1763527870707,9.23514013,139.13,139.12,29.28]
[1763527870911,18.12096,139.15,139.12,29.28]
[1763527871113,18.12096,139.15,139.13,0.66]
[1763527871302,9.91514013,139.17,139.14,4.28]
[1763527871618,9.91514013,139.16,139.14,4.28]
[1763527871800,0.68,139.16,139.14,4.135867]
[1763527873212,9.23514013,139.17,139.14,29.835867]
[1763527873417,0.68,139.17,139.14,29.835867]
[1763527873594,27.35610013,139.18,139.14,29.835867]
[1763527873795,28.03610013,139.18,139.14,29.835867]
[1763527874209,0.68,139.17,139.14,29.135867]
[1763527874806,9.91514013,139.17,139.14,29.135867]
[1763527876598,9.23514013,139.15,139.14,25.0]
[1763527876805,3.31681976,139.15,139.14,4.28]
[1763527877005,3.99681976,139.15,139.14,4.28]
[1763527879114,21.43777976,139.17,139.14,4.28]
[1763527879425,22.11777976,139.17,139.15,4.28]
[1763527879720,3.31681976,139.18,139.15,29.28]
[1763527880124,3.99681976,139.18,139.15,29.28]
[1763527880715,3.31681976,139.18,139.15,29.28]
[1763527880915,9.91517125,139.18,139.15,29.28]
[1763527881628,9.91517125,139.17,139.15,29.28]
[1763527881807,9.23517125,139.16,139.15,29.28]
[1763527882007,9.91517125,139.16,139.15,29.28]
[1763527882229,9.23517125,139.17,139.15,29.28]
[1763527882630,9.23517125,139.16,139.15,25.0]
[1763527882931,9.23517125,139.16,139.15,29.28]
[1763527884023,9.95517125,139.17,139.15,29.28]
[1763527884525,9.23517125,139.16,139.15,29.28]
[1763527884730,9.95517125,139.17,139.15,29.28]
[1763527884909,9.23517125,139.17,139.15,29.28]
[1763527885231,9.23517125,139.17,139.16,4.28]
[1763527885232,9.95517125,139.17,139.16,4.28]
[1763527886824,9.95517125,139.17,139.15,25.0]
[1763527887127,9.95517125,139.16,139.15,25.0]
[1763527887314,28.07613125,139.16,139.14,29.28]
[1763527887508,9.95517125,139.15,139.14,29.28]
[1763527887717,9.95517125,139.15,139.14,4.28]
[1763527889448,9.23517125,139.15,139.14,4.28]
[1763527889637,27.35613125,139.18,139.14,4.94]
[1763527889933,9.23517125,139.17,139.15,4.28]
[1763527891204,9.23517125,139.17,139.15,29.28]
[1763527891411,18.84096,139.18,139.15,29.94]
[1763527891606,18.12096,139.18,139.16,0.66]
[1763527891831,27.35613125,139.18,139.16,0.66]
[1763527892033,28.07613125,139.18,139.15,29.28]
[1763527892226,27.35613125,139.18,139.15,29.28]
[1763527892431,9.23517125,139.17,139.15,29.28]
[1763527892815,9.95517125,139.17,139.15,29.28]
[1763527893226,9.23517125,139.17,139.15,29.28]
[1763527893705,18.12096,139.18,139.15,25.0]
[1763527893922,9.23517125,139.17,139.16,4.28]
[1763527894335,28.07613125,139.18,139.16,4.28]
[1763527895728,27.35613125,139.18,139.16,4.28]
[1763527895927,18.12096,139.18,139.17,0.66]
[1763527896343,9.23517125,139.2,139.17,25.66]
[1763527896527,0.72,139.24,139.17,25.66]
[1763527896715,9.23517125,139.24,139.18,0.66]
[1763527896921,9.23517125,139.24,139.19,4.28]
[1763527897224,9.95517125,139.25,139.19,4.28]
[1763527897543,28.07613125,139.25,139.2,0.66]
[1763527897733,9.23517125,139.24,139.2,0.66]
[1763527899039,9.23517125,139.23,139.2,0.66]
[1763527899242,9.23517125,139.24,139.2,0.66]
[1763527900822,9.23517125,139.24,139.21,4.28]
[1763527901241,9.23517125,139.24,139.21,4.94]
[1763527901541,9.23517125,139.24,139.22,4.28]
[1763527902346,18.12096,139.25,139.23,0.66]
[1763527902526,27.35613125,139.25,139.23,25.0]
[1763527902843,20.24033269,139.25,139.23,25.0]
[1763527903044,20.24033269,139.25,139.23,25.69]
[1763527903232,2.11937269,139.24,139.23,25.0]
[1763527903432,2.11937269,139.24,139.23,25.69]
[1763527903625,2.11937269,139.24,139.23,25.0]
[1763527906519,0.2,139.28,139.23,25.69]
[1763527906862,0.2,139.28,139.24,0.69]
[1763527907022,0.2,139.28,139.25,4.28]
[1763527907524,0.2,139.28,139.26,0.69]
[1763527908240,0.2,139.28,139.27,4.28]
[1763527908746,0.2,139.28,139.27,4.97]
[1763527910852,0.2,139.28,139.27,7.08937269]
[1763527911326,0.2,139.28,139.27,4.97]
[1763527912138,0.2,139.28,139.27,0.69]
[1763527912345,0.2,139.28,139.27,4.97]
[1763527914540,0.2,139.29,139.28,24.8]
[1763527914746,0.2,139.29,139.28,25.49]
[1763527916931,0.2,139.29,139.28,128.59]
[1763527917444,0.2,139.29,139.28,132.87]
[1763527920447,0.2,139.3,139.29,24.4]
[1763527920648,0.2,139.3,139.29,24.89]
[1763527922148,0.2,139.3,139.29,127.99]
[1763527922351,0.2,139.31,139.29,139.89820038]
[1763527922554,0.2,139.31,139.3,7.08937269]
[1763527922850,0.2,139.31,139.3,26.83838649]
[1763527923031,0.2,139.31,139.3,4.97]
[1763527924651,0.2,139.31,139.3,7.08937269]
[1763527924828,0.2,139.31,139.3,2.80937269]
[1763527925029,0.2,139.32,139.31,9.78882769]
[1763527925251,0.2,139.32,139.31,13.31602393]
[1763527925430,0.2,139.34,139.31,139.92602393]
[1763527925633,0.2,139.34,139.32,7.08937269]
[1763527925933,0.2,139.34,139.33,2.11937269]
[1763527926144,0.2,139.34,139.33,2.80937269]
[1763527926547,0.2,139.34,139.33,0.69]
[1763527926859,0.2,139.34,139.33,2.80937269]
[1763527927056,0.2,139.34,139.33,0.69]
[1763527927252,0.2,139.34,139.33,7.08937269]
[1763527927547,0.1,139.37,139.33,7.08937269]
[1763527927752,0.8,139.37,139.34,0.69]
[1763527927958,0.8,139.37,139.35,4.28]
[1763527928151,0.8,139.37,139.36,4.28]
[1763527928958,2.91937269,139.37,139.34,24.2]
[1763527929139,2.11937269,139.35,139.34,4.28]
[1763527929539,18.12096,139.34,139.32,4.28]
[1763527929861,9.78882769,139.32,139.22,0.69]
[1763527930041,2.11937269,139.26,139.23,4.28]
[1763527930535,0.7,139.25,139.23,4.28]
[1763527931448,5.51897646,139.26,139.23,4.28]
[1763527931654,5.51897646,139.26,139.24,4.28]
[1763527931851,6.21897646,139.25,139.24,21.59295374]
[1763527932036,6.21897646,139.25,139.2,18.81096]
[1763527932232,6.21897646,139.25,139.21,4.28]
[1763527932551,6.21897646,139.25,139.21,4.98]
[1763527932552,0.69,139.25,139.21,4.98]
[1763527932946,0.69,139.25,139.21,26.38118669]
[1763527933558,5.51897646,139.24,139.22,4.28]
[1763527933749,5.51897646,139.23,139.16,18.12096]
[1763527934054,5.51897646,139.19,139.15,0.7]
[1763527934238,5.51897646,139.18,139.13,0.7]
[1763527934561,5.51897646,139.18,139.14,4.28]
[1763527934866,6.20897646,139.17,139.13,22.77436268]
[1763527935042,6.20897646,139.17,139.14,4.28]
[1763527935243,0.69,139.16,139.14,4.28]
[1763527936762,6.20897646,139.16,139.15,4.28]
[1763527937262,5.51897646,139.18,139.15,4.28]
[1763527937651,6.20897646,139.18,139.15,4.28]
[1763527937852,0.69,139.17,139.15,4.28]
[1763527938245,6.20897646,139.17,139.15,4.28]
[1763527938653,0.69,139.16,139.15,4.28]
[1763527939344,6.20897646,139.18,139.15,4.28]
[1763527939544,5.51897646,139.18,139.15,4.28]
[1763527939768,0.69,139.17,139.15,4.28]
[1763527941688,0.69,139.2,139.15,4.98]
[1763527941989,5.51897646,139.19,139.15,4.98]
[1763527942345,6.20897646,139.19,139.15,4.98]
[1763527942866,6.20897646,139.18,139.15,4.98]
[1763527943063,6.20897646,139.17,139.13,45.96827942]
[1763527943253,6.20897646,139.17,139.14,4.28]
[1763527944350,5.51897646,139.17,139.14,4.28]
[1763527944548,18.12096,139.21,139.14,4.28]
[1763527944743,6.20897646,139.18,139.14,4.94]
[1763527944950,5.51897646,139.2,139.15,0.66]
[1763527945163,6.20897646,139.21,139.15,6.17897646]
[1763527945355,0.69,139.2,139.15,30.37897646]
[1763527945557,0.69,139.2,139.16,0.66]
[1763527945741,0.69,139.2,139.17,4.28]
[1763527946360,6.20897646,139.24,139.18,6.17897646]
[1763527946566,0.69,139.24,139.18,30.37897646]
[1763527946777,5.51897646,139.26,139.2,5.51897646]
[1763527946953,6.20897646,139.27,139.21,5.51897646]
[1763527947151,6.20897646,139.27,139.22,4.28]
[1763527947554,5.51897646,139.25,139.22,4.28]
[1763527948055,6.20897646,139.25,139.22,4.28]
[1763527948255,0.69,139.25,139.22,4.28]
[1763527948462,18.12096,139.27,139.22,4.28]
[1763527948784,6.20897646,139.26,139.22,4.28]
[1763527948983,5.51897646,139.25,139.19,9.78882769]
[1763527949160,5.51897646,139.24,139.2,4.94]
[1763527949508,5.51897646,139.25,139.18,39.50780415]
[1763527949655,5.51897646,139.23,139.21,4.28]
[1763527950078,0.69,139.23,139.21,4.28]
[1763527950586,6.20897646,139.25,139.21,4.28]
[1763527950787,5.51897646,139.24,139.21,4.28]
[1763527950957,6.20897646,139.24,139.21,4.28]
[1763527951280,5.51897646,139.24,139.21,4.28]
[1763527951490,5.51897646,139.25,139.21,4.94]
[1763527951856,0.69,139.24,139.21,4.28]
[1763527952681,0.69,139.24,139.21,28.48]
[1763527953867,6.20897646,139.24,139.21,24.2]
[1763527954066,6.20897646,139.24,139.21,28.48]
[1763527954067,5.51897646,139.23,139.21,28.48]
[1763527954365,6.20897646,139.23,139.21,28.48]
[1763527955791,0.69,139.27,139.22,0.66]
[1763527955978,0.69,139.27,139.22,24.86]
[1763527956395,6.20897646,139.29,139.23,6.17897646]
[1763527956573,6.20897646,139.31,139.24,9.79897646]
[1763527956778,6.20897646,139.31,139.24,34.65897646]
[1763527956968,6.20897646,139.31,139.25,0.66]
[1763527957171,6.20897646,139.3,139.25,0.66]
[1763527958388,5.51897646,139.27,139.24,24.2]
[1763527958591,5.51897646,139.27,139.25,4.28]
[1763527958779,27.90978769,139.33,139.25,4.28]
[1763527958780,6.20897646,139.26,139.25,4.28]
[1763527959492,6.20897646,139.26,139.21,42.32096]
[1763527959493,6.20897646,139.26,139.2,42.98096]
[1763527959682,5.51897646,139.24,139.21,4.28]
[1763527959989,5.51897646,139.26,139.21,4.94]
[1763527960472,6.20897646,139.26,139.21,4.94]
[1763527960693,6.20897646,139.26,139.22,0.66]
[1763527961196,0.69,139.26,139.22,0.66]
[1763527962178,5.51897646,139.27,139.22,0.66]
[1763527962498,6.20897646,139.28,139.22,0.66]
[1763527962692,5.51897646,139.28,139.22,127.96]
[1763527962896,9.87217372,139.28,139.22,127.96]
[1763527963278,9.87217372,139.28,139.22,127.3]
[1763527963480,9.87217372,139.28,139.23,0.69]
[1763527963700,9.87217372,139.28,139.24,4.28]
[1763527964005,0.65,139.27,139.24,4.28]
[1763527964200,0.65,139.3,139.25,0.69]
[1763527964398,9.87217372,139.3,139.25,24.89]
[1763527964783,0.65,139.3,139.26,0.69]
[1763527964992,0.65,139.29,139.27,4.28]
[1763527965185,9.22217372,139.28,139.27,4.28]
[1763527965390,9.87217372,139.28,139.27,4.28]
[1763527965586,0.65,139.28,139.27,4.28]
[1763527966602,9.87217372,139.28,139.27,4.28]
[1763527968705,0.65,139.32,139.27,4.97]
[1763527968903,9.87217372,139.32,139.27,4.97]
[1763527969294,0.65,139.31,139.27,4.97]
[1763527969699,9.22217372,139.32,139.28,0.69]
[1763527969902,0.65,139.31,139.28,0.69]
[1763527970199,0.65,139.31,139.27,4.28]
[1763527970399,0.65,139.31,139.27,4.97]
[1763527970591,9.22217372,139.33,139.28,0.69]
[1763527970790,9.87217372,139.34,139.28,0.69]
[1763527971208,0.65,139.33,139.28,0.69]
[1763527972288,9.87217372,139.33,139.28,0.69]
[1763527972508,0.65,139.33,139.28,0.69]
[1763527972809,9.87217372,139.33,139.28,0.69]
[1763527974799,9.87217372,139.32,139.28,0.69]
[1763527975706,9.22217372,139.32,139.28,0.69]
[1763527975902,9.22217372,139.29,139.24,0.69]
[1763527976102,9.22217372,139.29,139.27,4.28]
[1763527976306,9.87217372,139.29,139.27,4.28]
[1763527976609,9.87217372,139.28,139.25,4.28]
[1763527977099,0.65,139.27,139.25,4.28]
[1763527978819,27.34313372,139.3,139.25,4.28]
[1763527978992,0.65,139.27,139.25,4.28]
[1763527979309,9.87217372,139.27,139.21,0.69]
[1763527979614,9.22217372,139.26,139.22,4.28]
[1763527979815,0.65,139.26,139.22,4.28]
[1763527980120,0.65,139.25,139.22,4.28]
[1763527981910,9.22217372,139.23,139.17,0.69]
[1763527982214,0.65,139.25,139.17,0.69]
[1763527982215,9.22217372,139.22,139.18,4.28]
[1763527982416,9.22217372,139.23,139.18,4.28]
[1763527982719,9.87217372,139.23,139.18,4.28]
[1763527982921,0.65,139.22,139.18,4.28]
[1763527983214,9.87217372,139.25,139.19,0.69]
[1763527983414,18.77096,139.25,139.19,9.91217372]
[1763527983621,18.12096,139.24,139.2,9.22217372]
[1763527983924,18.12096,139.24,139.19,9.91217372]
[1763527984107,18.77096,139.24,139.19,9.91217372]
[1763527984300,18.77096,139.24,139.2,0.69]
[1763527984503,18.77096,139.24,139.21,4.28]
[1763527985018,0.65,139.26,139.21,4.28]
[1763527985234,0.65,139.26,139.22,0.69]
[1763527985408,0.65,139.25,139.22,0.69]
[1763527985595,0.65,139.26,139.22,0.69]
[1763527986505,9.87217372,139.26,139.19,9.91217372]
[1763527986690,9.22217372,139.22,139.16,0.69]
[1763527986893,9.22217372,139.21,139.17,4.28]